bitfinex-derivatives/quotes_SOLF0:USTF0_20240827
["timestamp","ask_amount","ask_price","bid_price","bid_amount"]
[1724732958511,7.75,158.26,158.18,14.61]
[1724732958512,3.1592,158.23,158.18,14.61]
[1724732958828,0.04541356,158.22,158.19,0.04321165]
[1724732961623,3.1595,158.21,158.19,0.04321165]
[1724732962426,3.20481356,158.22,158.19,0.04321165]
[1724732964427,3.1596,158.21,158.19,0.04321165]
[1724732973629,3.20481356,158.22,158.19,10.95311165]
[1724732979336,3.20481356,158.22,158.19,7.79321165]
[1724732981944,3.20481356,158.22,158.19,0.04321165]
[1724732982345,3.1595,158.21,158.19,0.04321165]
[1724732987156,0.04541356,158.22,158.19,0.04321165]
[1724732987157,3.1597,158.2,158.19,0.04321165]
[1724732991051,3.1597,158.2,158.12,10.9113]
[1724732991052,3.1605,158.16,158.12,10.9113]
[1724732991950,3.20341468,158.16,158.12,10.9113]
[1724732992346,3.1607,158.15,158.12,10.9113]
[1724732993853,3.20351468,158.16,158.13,10.9111]
[1724732996364,3.1608,158.15,158.13,7.75]
[1724733002567,3.20351468,158.16,158.13,7.75]
[1724733003966,3.20351468,158.16,158.13,10.9111]
[1724733010378,0.04291468,158.16,158.14,10.9108]
[1724733018675,0.04291468,158.16,158.14,3.1608]
[1724733021775,12.6212,158.43,158.15,7.75]
[1724733021979,12.6212,158.43,158.18,7.75]
[1724733021980,4.48360949,158.28,158.18,7.75]
[1724733022177,3.1595,158.22,158.18,7.75]
[1724733022578,3.1595,158.22,158.18,10.91]
[1724733022777,3.20731323,158.22,158.18,10.91]
[1724733022978,3.20731323,158.22,158.18,10.9534288]
[1724733027789,3.20731323,158.22,158.2,7.75]
[1724733027985,0.04781323,158.22,158.21,7.75]
[1724733028993,98.38497446,158.29,158.21,10.9095]
[1724733028994,90.63497446,158.29,158.21,10.9095]
[1724733029179,7.75,158.28,158.21,10.9095]
[1724733029685,3.1589,158.25,158.21,10.9095]
[1724733030083,0.04494837,158.25,158.21,10.95449868]
[1724733031294,3.1589,158.24,158.21,10.95449868]
[1724733033088,3.1592,158.23,158.21,0.04499868]
[1724733033289,3.19634767,158.23,158.21,0.04499868]
[1724733033596,7.75,158.22,158.21,0.04499868]
[1724733033787,10.9093,158.22,158.21,0.04499868]
[1724733033986,10.9093,158.22,158.14,139.75801587]
[1724733033987,10.89073154,158.22,158.14,139.75801587]
[1724733034185,7.75,158.19,158.14,139.75801587]
[1724733034392,3.1605,158.17,158.14,7.75]
[1724733034995,3.1605,158.17,158.13,3.1611]
[1724733035289,3.20038234,158.17,158.14,0.04571431]
[1724733036085,0.03988234,158.17,158.14,0.04571431]
[1724733037288,3.1607,158.15,158.14,0.04571431]
[1724733038390,3.1605,158.16,158.14,0.04571431]
[1724733039795,3.1607,158.15,158.14,0.04571431]
[1724733042294,3.1606,158.16,158.14,0.04571431]
[1724733043597,3.1607,158.15,158.14,0.04571431]
[1724733049196,10.9107,158.15,158.14,0.04571431]
[1724733057602,3.1607,158.15,158.14,0.04571431]
[1724733064517,10.9107,158.15,158.14,0.04571431]
[1724733066320,7.75,158.15,158.08,1.2664]
[1724733066623,7.75,158.11,158.08,1.2664]
[1724733067218,3.2084892,158.11,158.08,1.2664]
[1724733069323,3.2084892,158.11,158.08,4.4285]
[1724733069621,0.0468892,158.11,158.08,4.4285]
[1724733070018,0.0468892,158.11,158.09,3.1618]
[1724733070624,0.0468892,158.11,158.08,1.2664]
[1724733070625,0.0468892,158.11,158.08,4.4284]
[1724733074221,3.2084892,158.11,158.08,4.4284]
[1724733075828,3.2084892,158.11,158.08,1.2664]
[1724733077228,3.2084892,158.11,158.08,4.4285]
[1724733090926,0.0468892,158.11,158.09,3.1619]
[1724733092936,3.1612,158.13,158.08,9.0164]
[1724733093333,3.1612,158.13,158.1,3.1616]
[1724733093533,44.547061,158.17,158.09,7.75]
[1724733093838,7.75,158.15,158.09,1.2068]
[1724733094040,7.75,158.13,158.1,0.0442937]
[1724733094630,10.9112,158.13,158.1,0.0442937]
[1724733098641,3.1614,158.12,158.1,0.0442937]
[1724733099239,10.9114,158.12,158.1,0.0442937]
[1724733099843,3.1615,158.11,158.1,0.0442937]
[1724733100539,6.31180715,158.11,158.1,0.0442937]
[1724733100742,14.06180715,158.11,158.1,0.0442937]
[1724733101143,10.9115,158.11,158.1,0.0442937]
[1724733109255,3.1615,158.11,158.1,0.0442937]
[1724733112154,10.9115,158.11,158.1,0.0442937]
[1724733119359,3.1615,158.11,158.1,0.0442937]
[1724733119554,3.1613,158.12,158.1,0.0442937]
[1724733120858,3.1615,158.11,158.1,0.0442937]
[1724733127868,10.9115,158.11,158.1,0.0442937]
[1724733131375,7.75,158.13,158.1,0.0442937]
[1724733132372,3.1613,158.12,158.1,0.0442937]
[1724733139986,0.04316821,158.14,158.11,3.11998623]
[1724733140192,4.83959443,158.26,158.12,13.34038623]
[1724733140484,7.75,158.22,158.16,7.75]
[1724733140685,7.75,158.22,158.12,2.4704]
[1724733140686,3.7,158.24,158.17,7.75]
[1724733140888,3.7,158.27,158.17,7.75]
[1724733141189,3.20491454,158.24,158.2,0.04051299]
[1724733141382,10.95491454,158.24,158.2,0.04051299]
[1724733141977,10.9092,158.23,158.2,0.04051299]
[1724733142182,7.75,158.21,158.2,0.04051299]
[1724733142993,10.9092,158.23,158.2,0.04051299]
[1724733143187,7.75,158.23,158.2,0.04051299]
[1724733144689,3.20491454,158.24,158.2,0.04051299]
[1724733144890,10.95491454,158.24,158.2,0.04051299]
[1724733147188,3.1592,158.23,158.2,0.04051299]
[1724733153598,0.04581454,158.24,158.2,7.79051299]
[1724733154002,0.04581454,158.24,158.2,10.95011299]
[1724733155002,3.20471454,158.24,158.2,10.95011299]
[1724733158509,3.1593,158.23,158.2,0.04051299]
[1724733159701,3.20481454,158.24,158.2,10.95021299]
[1724733160096,0.04581454,158.24,158.2,7.79051299]
[1724733160496,0.04581454,158.24,158.23,7.75]
[1724733161107,51.47048672,158.3,158.23,7.75]
[1724733161406,6.3108,158.42,158.27,7.75]
[1724733161407,7.75,158.33,158.27,7.75]
[1724733161611,10.93184248,158.33,158.27,7.75]
[1724733162311,10.93184248,158.33,158.28,0.04564616]
[1724733162312,3.1577,158.3,158.28,0.04564616]
[1724733178332,3.1579,158.29,158.28,0.04564616]
[1724733180222,3.1578,158.3,158.28,0.04564616]
[1724733180925,3.20536696,158.31,158.28,7.79564616]
[1724733181119,0.04776696,158.31,158.29,7.75]
[1724733184534,3.20536696,158.31,158.28,0.04564616]
[1724733184828,3.20536696,158.31,158.28,7.79564616]
[1724733188428,3.20536696,158.31,158.28,11.47564616]
[1724733188736,3.20536696,158.31,158.3,7.75]
[1724733189430,0.04776696,158.31,158.3,7.75]
[1724733189818,3.20526696,158.31,158.3,7.75]
[1724733191730,0.04776696,158.31,158.28,0.04564616]
[1724733192120,3.1579,158.3,158.28,0.04564616]
[1724733192924,3.1579,158.3,158.29,7.75]
[1724733193330,3.1579,158.3,158.28,7.79564616]
[1724733196327,3.1579,158.3,158.29,7.75]
[1724733197525,0.04776696,158.31,158.29,7.75]
[1724733204532,0.04776696,158.31,158.29,10.9079]
[1724733207331,0.04776696,158.31,158.3,3.1577]
[1724733207943,0.04776696,158.31,158.3,6.8377]
[1724733211137,0.04776696,158.31,158.3,3.68]
[1724733220946,0.04776696,158.31,158.3,6.8377]
[1724733223447,0.04776696,158.31,158.28,3.20374616]
[1724733223649,0.04776696,158.31,158.28,6.88374616]
[1724733223843,0.04776696,158.31,158.28,3.72564616]
[1724733224049,0.04776696,158.31,158.28,7.79564616]
[1724733225150,3.20536696,158.31,158.28,7.79564616]
[1724733227551,3.1578,158.3,158.28,0.04564616]
[1724733227750,0.04776696,158.31,158.28,0.04564616]
[1724733228449,3.1577,158.3,158.28,0.04564616]
[1724733230553,3.1577,158.3,158.28,7.79564616]
[1724733231554,3.1577,158.3,158.28,0.04564616]
[1724733234250,0.04776696,158.31,158.28,0.04564616]
[1724733234251,3.1579,158.29,158.28,0.04564616]
[1724733239262,10.9079,158.29,158.28,0.04564616]
[1724733241060,10.9079,158.29,158.21,7.75]
[1724733241061,3.1588,158.25,158.21,7.75]
[1724733241369,7.75,158.27,158.21,7.75]
[1724733241661,3.1589,158.25,158.2,11.43]
[1724733241857,3.1589,158.25,158.21,3.16296552]
[1724733242063,0.04494824,158.24,158.21,0.04658668]
[1724733242459,0.04494824,158.24,158.21,3.20608668]
[1724733243664,3.20384824,158.24,158.21,0.04658668]
[1724733243861,0.04494824,158.24,158.21,0.04658668]
[1724733244663,3.1593,158.23,158.21,0.04658668]
[1724733245566,3.20384824,158.24,158.21,7.79658668]
[1724733246871,0.04494824,158.24,158.21,10.95608668]
[1724733247370,0.04494824,158.24,158.23,7.75]
[1724733249259,3.68,158.33,158.23,7.75]
[1724733249457,7.75,158.31,158.25,7.75]
[1724733249862,3.1584,158.27,158.24,7.75]
[1724733250271,3.20193192,158.27,158.24,7.7916477]
[1724733256970,0.04353192,158.27,158.24,7.7916477]
[1724733257170,0.04353192,158.27,158.26,7.75]
[1724733258373,0.04353192,158.27,158.26,10.9085]
[1724733261674,0.04353192,158.27,158.26,3.1585]
[1724733265275,0.04353192,158.27,158.25,7.75]
[1724733265276,0.04353192,158.27,158.25,10.9086]
[1724733265468,0.04353192,158.27,158.25,3.1586]
[1724733265774,0.04353192,158.27,158.24,10.9503477]
[1724733265976,0.04353192,158.27,158.24,7.7916477]
[1724733267070,0.04353192,158.27,158.24,10.9504477]
[1724733277473,3.20183192,158.27,158.24,10.9504477]
[1724733283791,0.04353192,158.27,158.26,7.75]
[1724733285294,0.04353192,158.27,158.26,10.9085]
[1724733285994,3.1577,158.3,158.26,10.9085]
[1724733286199,3.1577,158.3,158.27,3.1583]
[1724733286995,3.20610402,158.3,158.27,3.1583]
[1724733287900,0.04840402,158.3,158.28,3.1581]
[1724733288297,0.04840402,158.3,158.28,10.9081]
[1724733288497,0.04840402,158.3,158.28,12.1955]
[1724733288694,0.04840402,158.3,158.29,3.1579]
[1724733288897,2.4238,158.42,158.29,7.75]
[1724733289100,7.75,158.38,158.32,7.75]
[1724733289996,7.75,158.38,158.33,0.0474618]
[1724733289997,0.04125633,158.37,158.33,0.0474618]
[1724733290404,3.1567,158.36,158.33,0.0474618]
[1724733293698,0.04125633,158.37,158.33,0.0474618]
[1724733293904,3.1568,158.35,158.33,0.0474618]
[1724733298506,3.1569,158.34,158.33,0.0474618]
[1724733299803,3.1568,158.35,158.33,0.0474618]
[1724733300711,0.04125633,158.37,158.34,7.75]
[1724733302004,0.04125633,158.37,158.33,0.0474618]
[1724733302508,3.1565,158.36,158.33,0.0474618]
[1724733302701,7.79125633,158.37,158.33,0.0474618]
[1724733305407,3.1569,158.34,158.33,0.0474618]
[1724733308515,3.1569,158.34,158.33,7.7974618]
[1724733309017,3.1567,158.35,158.33,7.7974618]
[1724733319418,3.1566,158.36,158.33,7.7974618]
[1724733333527,0.04125633,158.37,158.34,7.75]
[1724733333737,25.26,158.53,158.36,38.75]
[1724733333738,4.46276127,158.47,158.36,38.75]
[1724733334037,6.86993402,158.47,158.41,7.75]
[1724733334230,3.1549,158.45,158.41,7.75]
[1724733334432,6.86993402,158.47,158.41,7.75]
[1724733334625,3.1548,158.45,158.42,0.04315478]
[1724733335033,0.04359143,158.46,158.42,0.04315478]
[1724733336336,3.155,158.44,158.42,0.04315478]
[1724733340124,0.04359143,158.46,158.43,7.75]
[1724733340327,0.04359143,158.46,158.45,7.75]
[1724733341232,3.19420498,158.53,158.45,7.75]
[1724733341439,7.75,158.51,158.44,11.43]
[1724733341633,7.75,158.49,158.44,7.75]
[1724733341824,7.75,158.49,158.44,11.43]
[1724733342233,3.19639893,158.48,158.45,0.04658224]
[1724733342430,7.79209893,158.48,158.45,0.04658224]
[1724733343027,0.04209893,158.48,158.45,0.04658224]
[1724733344533,3.1544,158.47,158.45,0.04658224]
[1724733355839,3.1544,158.47,158.45,7.79658224]
[1724733356640,0.04209893,158.48,158.46,7.75]
[1724733359039,3.19629893,158.48,158.45,1.33088224]
[1724733359239,3.19629893,158.48,158.45,5.01088224]
[1724733359746,3.1544,158.47,158.45,5.01088224]
[1724733359939,3.1544,158.47,158.45,12.76088224]
[1724733360139,0.04209893,158.48,158.45,12.76088224]
[1724733360336,3.19629893,158.48,158.46,7.75]
[1724733361344,3.1543,158.47,158.45,5.01088224]
[1724733361547,3.1543,158.47,158.45,12.76088224]
[1724733361946,3.1543,158.47,158.45,9.08088224]
[1724733362144,3.1545,158.46,158.45,0.04658224]
[1724733362850,3.1544,158.47,158.45,0.04658224]
[1724733363045,0.04209893,158.48,158.46,7.75]
[1724733363450,3.19639893,158.48,158.46,7.75]
[1724733371754,0.04209893,158.48,158.46,7.75]
[1724733383273,0.04209893,158.48,158.46,10.9044]
[1724733384271,3.1533,158.53,158.47,3.68]
[1724733384476,3.1533,158.53,158.5,7.75]
[1724733385267,3.19754546,158.53,158.5,7.79399829]
[1724733386069,0.04424546,158.53,158.5,10.94769829]
[1724733388365,0.04424546,158.53,158.5,7.79399829]
[1724733388573,0.04424546,158.53,158.52,7.75]
[1724733399471,0.04424546,158.53,158.52,10.9033]
[1724733399675,3.68,158.61,158.52,38.75]
[1724733399879,2.5017,158.62,158.56,7.75]
[1724733400084,3.1522,158.58,158.56,7.75]
[1724733401582,3.19614162,158.59,158.56,7.75]
[1724733401780,0.04414162,158.59,158.58,7.75]
[1724733406587,3.1514,158.62,158.6,7.75]
[1724733408480,0.04566832,158.63,158.59,0.04652704]
[1724733408678,3.1517,158.6,158.59,0.04652704]
[1724733409088,3.1516,158.61,158.59,0.04652704]
[1724733410088,3.1514,158.62,158.59,0.04652704]
[1724733411891,3.1516,158.61,158.59,0.04652704]
[1724733412992,3.1514,158.62,158.59,0.04652704]
[1724733413181,0.04566832,158.63,158.59,0.04652704]
[1724733413489,0.04566832,158.63,158.59,7.79652704]
[1724733413684,0.04566832,158.63,158.62,7.75]
[1724733415187,0.04566832,158.63,158.61,7.75]
[1724733415389,0.04566832,158.63,158.6,7.75]
[1724733416386,3.19686832,158.63,158.6,7.75]
[1724733416987,0.04566832,158.63,158.61,7.75]
[1724733418798,3.19686832,158.63,158.61,7.75]
[1724733419296,3.19686832,158.63,158.59,0.04652704]
[1724733419297,0.04566832,158.63,158.59,3.72652704]
[1724733419493,3.1514,158.62,158.59,3.72652704]
[1724733419793,3.27525307,158.63,158.59,0.04652704]
[1724733419994,3.1514,158.62,158.59,0.04652704]
[1724733420290,0.04566832,158.63,158.59,7.79652704]
[1724733420490,0.04566832,158.63,158.59,0.04652704]
[1724733420995,3.1514,158.62,158.59,0.04652704]
[1724733422091,3.1516,158.61,158.59,0.04652704]
[1724733422992,3.1514,158.62,158.6,7.75]
[1724733424896,0.04566832,158.63,158.61,7.75]
[1724733426999,0.04566832,158.63,158.59,0.04652704]
[1724733427199,0.04566832,158.63,158.59,7.79652704]
[1724733428099,3.19696832,158.63,158.59,7.79652704]
[1724733431098,0.04566832,158.63,158.59,0.04652704]
[1724733431303,3.1514,158.62,158.59,7.79652704]
[1724733432005,3.1517,158.61,158.59,7.79652704]
[1724733432204,3.1517,158.61,158.59,0.04652704]
[1724733432401,3.1517,158.61,158.59,7.79652704]
[1724733432606,3.1514,158.62,158.59,7.79652704]
[1724733434303,0.04566832,158.63,158.61,7.75]
[1724733434502,0.04566832,158.63,158.62,7.75]
[1724733437810,0.04566832,158.63,158.6,3.1517]
[1724733438003,0.04566832,158.63,158.62,7.75]
[1724733440111,0.04566832,158.63,158.59,0.04652704]
[1724733440503,0.04566832,158.63,158.6,7.75]
[1724733441308,3.19696832,158.63,158.6,7.75]
[1724733442209,1.2249,158.72,158.59,0.04652704]
[1724733442409,1.2249,158.72,158.65,7.75]
[1724733442610,0.78111207,158.71,158.65,7.75]
[1724733443006,8.53111207,158.71,158.65,7.75]
[1724733443211,0.04335259,158.7,158.66,0.04226254]
[1724733443407,3.1503,158.68,158.66,0.04226254]
[1724733446320,3.1504,158.67,158.66,0.04226254]
[1724733450221,0.04335259,158.7,158.66,0.04226254]
[1724733450919,3.1503,158.68,158.66,0.04226254]
[1724733451823,3.1504,158.67,158.66,0.04226254]
[1724733460231,3.1502,158.68,158.66,7.79226254]
[1724733460833,3.1504,158.67,158.66,7.79226254]
[1724733464839,3.1502,158.68,158.66,7.79226254]
[1724733469133,0.04335259,158.7,158.66,7.79226254]
[1724733470232,3.1501,158.69,158.66,0.04226254]
[1724733470436,3.1501,158.69,158.66,7.79226254]
[1724733471643,3.1501,158.69,158.66,0.04226254]
[1724733471947,3.1502,158.68,158.66,0.04226254]
[1724733472149,7.75,158.69,158.66,0.04226254]
[1724733472338,7.75,158.68,158.66,0.04226254]
[1724733472545,3.1504,158.67,158.66,0.04226254]
[1724733472843,7.75,158.68,158.61,1.2773]
[1724733473145,7.75,158.66,158.61,1.2773]
[1724733473744,3.76,158.69,158.61,1.2773]
[1724733473745,3.15510655,158.72,158.65,7.75]
[1724733473948,7.75,158.68,158.67,0.0448854]
[1724733474249,13.99297853,158.68,158.67,0.0448854]
[1724733475037,3.1502,158.68,158.67,0.0448854]
[1724733475548,7.79156383,158.7,158.67,0.0448854]
[1724733475549,3.15,158.69,158.67,0.0448854]
[1724733477249,3.19146383,158.7,158.67,0.0448854]
[1724733479756,0.04156383,158.7,158.67,0.0448854]
[1724733480453,0.04156383,158.7,158.67,3.1951854]
[1724733480853,0.04156383,158.7,158.67,10.9451854]
[1724733483155,0.04156383,158.7,158.67,0.0448854]
[1724733488459,0.04156383,158.7,158.67,3.1951854]
[1724733488661,0.04156383,158.7,158.68,7.75]
[1724733489057,0.04156383,158.7,158.67,10.9451854]
[1724733489257,0.04156383,158.7,158.67,3.1951854]
[1724733495563,0.04156383,158.7,158.68,7.75]
[1724733495764,0.04156383,158.7,158.69,7.75]
[1724733496662,0.04156383,158.7,158.69,10.9]
[1724733498965,0.04156383,158.7,158.69,3.15]
[1724733499158,0.04156383,158.7,158.69,10.9]
[1724733504661,0.04156383,158.7,158.68,8.9669]
[1724733505557,0.04156383,158.7,158.68,12.117]
[1724733505953,0.04156383,158.7,158.68,8.9669]
[1724733507368,0.04156383,158.7,158.69,3.15]
[1724733508160,0.04156383,158.7,158.68,8.9669]
[1724733509464,0.04156383,158.7,158.68,12.1169]
[1724733511070,0.04156383,158.7,158.68,4.3669]
[1724733511264,0.04156383,158.7,158.68,12.1169]
[1724733513369,0.04156383,158.7,158.69,10.9]
[1724733515373,0.04156383,158.7,158.69,3.15]
[1724733515574,0.04156383,158.7,158.69,10.9]
[1724733516469,0.04156383,158.7,158.69,7.75]
[1724733516675,0.04156383,158.7,158.68,4.3669]
[1724733518271,0.04156383,158.7,158.68,3.15]
[1724733518470,0.04156383,158.7,158.67,7.7948854]
[1724733518471,3.15,158.69,158.67,0.0448854]
[1724733519470,3.19136383,158.7,158.67,0.0448854]
[1724733522467,0.04156383,158.7,158.67,0.0448854]
[1724733523177,3.1501,158.69,158.67,0.0448854]
[1724733527182,3.19136383,158.7,158.67,0.0448854]
[1724733534293,3.15,158.69,158.67,0.0448854]
[1724733534700,0.04156383,158.7,158.67,0.0448854]
[1724733534701,10.9002,158.68,158.67,0.0448854]
[1724733534996,14.1134377,158.68,158.67,0.0448854]
[1724733535192,7.75,158.66,158.6,3.76]
[1724733535387,10.9007,158.66,158.6,3.1516]
[1724733535584,14.08337145,158.66,158.6,3.1516]
[1724733536197,0.04584691,158.65,158.61,3.19996923]
[1724733536787,1.2529,158.72,158.64,7.75]
[1724733536788,3.76,158.72,158.64,7.75]
[1724733536990,11.51,158.72,158.65,7.75]
[1724733537594,3.15,158.69,158.64,3.1509]
[1724733537786,0.04161295,158.68,158.65,0.04138484]
[1724733540998,3.19181295,158.68,158.65,0.04138484]
[1724733541386,3.07376268,158.67,158.65,0.04138484]
[1724733541795,10.94181295,158.68,158.65,0.04138484]
[1724733542199,0.04161295,158.68,158.65,0.04138484]
[1724733543994,0.04161295,158.68,158.65,3.19208484]
[1724733546095,3.17166003,158.68,158.65,3.19208484]
[1724733546496,0.04161295,158.68,158.65,3.19208484]
[1724733547001,0.04161295,158.68,158.67,3.1504]
[1724733547501,0.04161295,158.68,158.65,3.19198484]
[1724733548296,3.25421418,158.68,158.65,0.04138484]
[1724733548802,0.04161295,158.68,158.65,0.04138484]
[1724733549102,3.13385191,158.68,158.65,0.04138484]
[1724733549297,0.04161295,158.68,158.65,0.04138484]
[1724733549696,3.19181295,158.68,158.65,0.04138484]
[1724733550002,6.26829769,158.68,158.65,0.04138484]
[1724733550192,3.19181295,158.68,158.65,0.04138484]
[1724733550795,6.33383526,158.68,158.65,0.04138484]
[1724733551599,14.08383526,158.68,158.65,0.04138484]
[1724733551997,10.93363526,158.68,158.65,0.04138484]
[1724733552802,3.1505,158.67,158.65,0.04138484]
[1724733553000,7.75,158.66,158.52,25.2]
[1724733553205,3.1519,158.6,158.53,5.6109119]
[1724733553407,7.75,158.61,158.54,3.1003119]
[1724733553703,7.75,158.61,158.55,3.1003119]
[1724733553901,7.75,158.61,158.53,17.1736]
[1724733554104,3.19495247,158.59,158.55,0.04134302]
[1724733554299,0.04295247,158.59,158.55,0.04134302]
[1724733554607,7.79295247,158.59,158.55,0.04134302]
[1724733555410,10.94505247,158.59,158.55,0.04134302]
[1724733556300,3.1522,158.58,158.55,0.04134302]
[1724733556508,7.79295247,158.59,158.55,0.04134302]
[1724733556902,3.1522,158.58,158.55,0.04134302]
[1724733557407,7.79295247,158.59,158.55,0.04134302]
[1724733557713,10.9022,158.58,158.55,0.04134302]
[1724733558916,3.1524,158.57,158.55,0.04134302]
[1724733560616,3.1525,158.56,158.55,0.04134302]
[1724733562408,3.1525,158.56,158.43,1.2737]
[1724733562409,11.57,158.57,158.43,1.2737]
[1724733562615,3.82,158.57,158.44,8.9689]
[1724733562811,10.9035,158.52,158.45,7.75]
[1724733563013,11.57,158.52,158.45,7.75]
[1724733563214,11.57,158.52,158.46,3.1545]
[1724733563415,0.04591479,158.51,158.47,0.04174395]
[1724733564317,3.19941479,158.51,158.47,0.04174395]
[1724733565420,3.19941479,158.51,158.47,3.19594395]
[1724733566119,7.75,158.5,158.47,0.04174395]
[1724733569519,10.9038,158.5,158.47,0.04174395]
[1724733572217,7.75,158.49,158.47,0.04174395]
[1724733576125,3.19951479,158.51,158.47,3.19604395]
[1724733576523,0.04591479,158.51,158.48,3.154]
[1724733576719,0.04591479,158.51,158.47,7.79174395]
[1724733578330,0.04591479,158.51,158.49,3.1538]
[1724733579930,0.04591479,158.51,158.5,3.1537]
[1724733580126,0.04591479,158.51,158.5,4.3742]
[1724733580834,7.75,158.57,158.5,8.9705]
[1724733581031,10.9025,158.57,158.5,8.9705]
[1724733581225,10.9025,158.57,158.52,3.1533]
[1724733581726,3.19377308,158.56,158.53,0.04797591]
[1724733581927,0.04117308,158.56,158.53,0.04797591]
[1724733582933,0.04117308,158.56,158.53,7.79797591]
[1724733584340,0.04117308,158.56,158.54,3.1528]
[1724733584641,0.04117308,158.56,158.53,7.79797591]
[1724733584829,0.04117308,158.56,158.54,7.75]
[1724733585034,0.04117308,158.56,158.55,3.1527]
[1724733585540,3.82,158.63,158.55,3.1527]
[1724733585735,3.82,158.63,158.56,3.1525]
[1724733585939,7.75,158.61,158.56,3.1525]
[1724733586639,0.04349961,158.6,158.57,0.04357178]
[1724733587343,3.19539961,158.6,158.57,0.04357178]
[1724733587638,0.04349961,158.6,158.57,3.19587178]
[1724733588035,0.04349961,158.6,158.57,7.79357178]
[1724733588542,0.04349961,158.6,158.59,3.1519]
[1724733591450,7.75,158.66,158.58,7.75]
[1724733591741,10.9007,158.66,158.6,7.75]
[1724733592039,10.9007,158.66,158.62,3.1512]
[1724733592240,10.94142108,158.66,158.62,3.19531803]
[1724733596750,7.79072108,158.66,158.62,3.19531803]
[1724733598351,10.94132108,158.66,158.62,3.19531803]
[1724733604555,10.94132108,158.66,158.62,0.04411803]
[1724733604952,3.1508,158.65,158.62,0.04411803]
[1724733605252,7.75,158.64,158.62,0.04411803]
[1724733605454,10.9012,158.63,158.62,0.04411803]
[1724733608253,3.1514,158.62,158.58,3.1521]
[1724733609255,3.19722386,158.62,158.58,3.19245259]
[1724733610457,7.75,158.59,158.58,0.04035259]
[1724733611150,10.9019,158.59,158.58,0.04035259]
[1724733611760,0.04582386,158.62,158.58,3.19245259]
[1724733612061,0.04582386,158.62,158.58,0.04035259]
[1724733612455,0.04582386,158.62,158.58,3.19235259]
[1724733612659,0.04582386,158.62,158.58,0.04035259]
[1724733612955,0.04582386,158.62,158.59,3.1519]
[1724733617062,0.04582386,158.62,158.59,7.75]
[1724733617261,0.04582386,158.62,158.61,7.75]
[1724733617657,0.04582386,158.62,158.61,10.9015]
[1724733625559,0.04582386,158.62,158.58,1.27425259]
[1724733625759,0.04582386,158.62,158.58,9.02425259]
[1724733625965,0.04582386,158.62,158.59,7.75]
[1724733627364,0.04582386,158.62,158.61,3.1515]
[1724733627968,0.04582386,158.62,158.61,10.9015]
[1724733628774,0.04582386,158.62,158.61,14.7215]
[1724733640473,4.51320957,158.71,158.61,11.57]
[1724733640474,9.0461,158.71,158.61,11.57]
[1724733640674,12.26111594,158.71,158.64,7.75]
[1724733641072,3.1503,158.68,158.64,10.9008]
[1724733641584,3.19316425,158.68,158.64,10.94601017]
[1724733643779,3.19316425,158.68,158.64,3.19601017]
[1724733651583,0.04286425,158.68,158.65,3.1507]
[1724733651778,0.04286425,158.68,158.64,0.04521017]
[1724733652886,0.04286425,158.68,158.64,3.19611017]
[1724733654294,3.1504,158.67,158.64,0.04521017]
[1724733654895,3.19306425,158.68,158.64,3.19601017]
[1724733660491,3.1504,158.67,158.64,3.19601017]
[1724733664894,3.19306425,158.68,158.64,3.19601017]
[1724733683601,0.04286425,158.68,158.65,3.1507]
[1724733683797,0.04286425,158.68,158.66,7.75]
[1724733684006,0.04286425,158.68,158.67,7.75]
[1724733684903,0.04286425,158.68,158.67,10.9004]
[1724733685101,0.04286425,158.68,158.64,0.04521017]
[1724733685405,0.04286425,158.68,158.65,3.10019259]
[1724733685595,0.04286425,158.68,158.64,0.04521017]
[1724733685799,0.04286425,158.68,158.65,3.10046411]
[1724733686000,0.04286425,158.68,158.65,3.1506]
[1724733688609,0.04286425,158.68,158.64,3.19611017]
[1724733688807,7.75,158.67,158.64,0.04521017]
[1724733689209,10.9004,158.67,158.64,0.04521017]
[1724733690514,3.1506,158.66,158.64,0.04521017]
[1724733697411,3.1508,158.65,158.64,0.04521017]
[1724733697613,3.1508,158.65,158.64,3.14607824]
[1724733699408,3.1508,158.65,158.64,0.04521017]